bitfinex-derivatives/quotes_SOLF0:USTF0_20250419
["timestamp","ask_amount","ask_price","bid_price","bid_amount"]
[1745062776385,5.01881991,138.7,138.69,0.04799139]
[1745062776781,0.04839913,138.72,138.69,0.04799139]
[1745062776986,27.88,138.78,138.69,9.0593139]
[1745062777485,36.89132251,138.78,138.68,3.1174]
[1745062778291,7.2078,138.75,138.68,3.1174]
[1745062778590,36.89132251,138.78,138.72,0.04954863]
[1745062778591,9.01132251,138.74,138.72,0.04954863]
[1745062778890,7.2088,138.73,138.72,0.04954863]
[1745062779091,9.01132251,138.76,138.72,0.04954863]
[1745062779892,7.208,138.75,138.72,0.04954863]
[1745062780192,9.01132251,138.76,138.72,0.04954863]
[1745062780792,7.2088,138.73,138.72,0.04954863]
[1745062782494,616.45297175,138.73,138.52,361.0]
[1745062782795,9.01132251,138.64,138.53,18.31742251]
[1745062782990,27.88,138.63,138.53,18.31742251]
[1745062783496,35.094,138.63,138.53,18.31742251]
[1745062784192,7.2148,138.62,138.53,18.31742251]
[1745062784389,27.88,138.63,138.53,18.31742251]
[1745062784892,35.0944,138.63,138.53,18.31742251]
[1745062785190,27.88,138.63,138.53,18.31742251]
[1745062785794,7.2148,138.62,138.53,18.31742251]
[1745062786196,27.88,138.63,138.53,18.31742251]
[1745062786493,7.2145,138.62,138.53,18.31742251]
[1745062787495,35.0941,138.63,138.53,18.31742251]
[1745062788695,27.88,138.66,138.57,9.01132251]
[1745062788897,4.8814459,138.65,138.58,27.88]
[1745062789194,4.8814459,138.64,138.58,27.88]
[1745062789397,4.8814459,138.63,138.58,27.88]
[1745062789598,7.2132,138.65,138.58,27.88]
[1745062789894,4.88113132,138.64,138.58,27.88]
[1745062790088,4.88113132,138.63,138.59,3.1504]
[1745062790287,27.88,138.66,138.59,3.1504]
[1745062790597,4.8811583,138.65,138.59,12.16172251]
[1745062790794,4.8822959,138.64,138.6,6.4]
[1745062790994,27.88,138.66,138.6,6.4]
[1745062791194,4.88229516,138.65,138.6,6.4]
[1745062791395,4.88229516,138.64,138.6,6.4]
[1745062791694,27.88,138.69,138.61,9.01132251]
[1745062791994,4.88382522,138.68,138.62,27.88]
[1745062792201,4.88382522,138.67,138.62,27.88]
[1745062792500,27.88,138.69,138.62,27.88]
[1745062792697,4.88421451,138.68,138.67,7.2116]
[1745062793701,27.88,138.72,138.63,9.01132251]
[1745062793901,12.09500854,138.71,138.63,9.01132251]
[1745062794101,4.88520854,138.7,138.63,9.01132251]
[1745062794301,4.88520854,138.69,138.63,9.01132251]
[1745062794503,36.89132251,138.72,138.62,27.88]
[1745062794703,4.88456582,138.71,138.62,27.88]
[1745062794903,4.88456582,138.7,138.62,27.88]
[1745062795104,12.09546582,138.69,138.62,27.88]
[1745062795306,4.88456582,138.68,138.62,27.88]
[1745062795507,4.88456582,138.67,138.62,27.88]
[1745062795805,7.2114,138.68,138.62,27.88]
[1745062796004,4.88340644,138.67,138.62,27.88]
[1745062796203,7.2105,138.7,138.62,27.88]
[1745062796401,4.88418062,138.69,138.62,27.88]
[1745062796603,4.88418062,138.68,138.62,27.88]
[1745062796807,7.211,138.69,138.62,27.88]
[1745062797004,4.88364437,138.68,138.62,27.88]
[1745062797205,4.88260621,138.67,138.59,3.1504]
[1745062797406,4.88260621,138.66,138.59,3.1504]
[1745062797601,4.88260621,138.65,138.59,3.1504]
[1745062797807,39.95332251,138.68,138.59,3.1504]
[1745062798007,12.09426179,138.67,138.59,3.1504]
[1745062798208,4.88236179,138.66,138.59,3.1504]
[1745062798506,4.88236179,138.65,138.59,3.1504]
[1745062798807,7.2119,138.67,138.59,3.1504]
[1745062799108,4.88228958,138.66,138.59,3.1504]
[1745062799403,35.0916,138.68,138.59,12.16172251]
[1745062799609,4.88258545,138.67,138.59,12.16172251]
[1745062799808,4.88258545,138.66,138.59,12.16172251]
[1745062800010,35.0916,138.68,138.59,12.16172251]
[1745062800203,4.88266435,138.67,138.59,12.16172251]
[1745062800409,4.88266435,138.66,138.59,12.16172251]
[1745062800709,35.0916,138.68,138.59,12.16172251]
[1745062800909,4.88250539,138.67,138.59,12.16172251]
[1745062801208,4.88250539,138.66,138.59,12.16172251]
[1745062801410,7.212,138.67,138.59,12.16172251]
[1745062801609,4.88299183,138.66,138.59,12.16172251]
[1745062801810,4.8828831,138.65,138.59,12.16172251]
[1745062802011,7.212,138.67,138.59,12.16172251]
[1745062802211,4.88318472,138.66,138.59,12.16172251]
[1745062802414,4.8831734,138.65,138.59,12.16172251]
[1745062802615,7.212,138.67,138.59,12.16172251]
[1745062802815,4.88315915,138.66,138.59,12.16172251]
[1745062803014,4.88315915,138.65,138.59,12.16172251]
[1745062803215,7.212,138.67,138.59,12.16172251]
[1745062803414,4.8835724,138.66,138.59,12.16172251]
[1745062803715,4.8835724,138.65,138.59,12.16172251]
[1745062803917,7.212,138.67,138.59,12.16172251]
[1745062804117,4.88359461,138.66,138.59,12.16172251]
[1745062804312,4.88359461,138.65,138.59,12.16172251]
[1745062804516,27.88,138.68,138.59,12.16172251]
[1745062804712,12.09881311,138.67,138.59,12.16172251]
[1745062804915,4.88691311,138.66,138.59,12.16172251]
[1745062805114,4.88687891,138.65,138.59,12.16172251]
[1745062805318,7.2119,138.67,138.59,12.16172251]
[1745062805518,4.88817592,138.66,138.59,12.16172251]
[1745062805719,4.88817592,138.65,138.59,12.16172251]
[1745062806017,7.2119,138.67,138.59,12.16172251]
[1745062806214,27.88,138.68,138.59,3.1504]
[1745062806215,4.89091565,138.66,138.59,3.1504]
[1745062806420,13.90223816,138.65,138.58,27.88]
[1745062806719,7.2145,138.62,138.58,27.88]
[1745062806919,4.89091565,138.61,138.58,27.88]
[1745062807122,4.88990256,138.6,138.58,27.88]
[1745062807419,7.2145,138.62,138.57,3.2348]
[1745062807621,4.89010396,138.61,138.57,3.2348]
[1745062807821,4.89010396,138.6,138.57,3.2348]
[1745062808022,7.2145,138.62,138.57,3.2348]
[1745062808320,4.88942733,138.61,138.57,3.2348]
[1745062808517,4.88942733,138.6,138.57,3.2348]
[1745062808716,30.8653,138.64,138.57,3.2348]
[1745062808918,4.89015647,138.63,138.57,3.2348]
[1745062809215,4.89015647,138.62,138.57,3.2348]
[1745062809523,4.89015647,138.61,138.55,598.92]
[1745062809721,4.89015647,138.6,138.55,598.92]
[1745062810022,9.01132251,138.57,138.32,361.0]
[1745062810219,7.87535647,138.56,138.47,9.01132251]
[1745062810415,4.89015647,138.55,138.48,6.2595]
[1745062810623,27.82,138.58,138.5,9.01132251]
[1745062810821,4.87921485,138.57,138.51,27.82]
[1745062811123,4.87921485,138.56,138.51,36.83132251]
[1745062811324,4.87921485,138.55,138.51,36.83132251]
[1745062811518,35.0367,138.58,138.51,36.83132251]
[1745062811723,4.87621538,138.57,138.51,36.83132251]
[1745062811917,4.87621538,138.56,138.51,36.83132251]
[1745062812121,4.87621538,138.55,138.51,27.82]
[1745062812322,27.82,138.58,138.51,27.82]
[1745062812522,7.2184,138.55,138.51,27.82]
[1745062812722,4.87250145,138.54,138.51,27.82]
[1745062812925,4.87250145,138.53,138.48,37.2326]
[1745062813226,9.01132251,138.57,138.46,27.82]
[1745062813425,4.8663434,138.56,138.46,27.82]
[1745062813627,7.219,138.54,138.46,27.82]
[1745062813926,0.04662451,138.52,138.46,27.82]
[1745062814328,0.04662451,138.52,138.49,0.04556789]
[1745062815422,0.04662451,138.52,138.5,27.84]
[1745062815625,4.86006829,138.57,138.51,9.01132251]
[1745062815824,27.82,138.58,138.51,15.37442251]
[1745062816123,27.84,138.61,138.51,15.37442251]
[1745062816325,4.86116983,138.6,138.51,15.37442251]
[1745062816524,4.86116983,138.59,138.51,15.37442251]
[1745062816727,4.86116983,138.58,138.51,15.37442251]
[1745062816926,7.2164,138.59,138.54,0.05176273]
[1745062817127,4.86111502,138.58,138.54,0.05176273]
[1745062817326,7.2164,138.59,138.54,0.05176273]
[1745062817526,4.8605788,138.58,138.54,0.05176273]
[1745062817726,7.2164,138.59,138.54,0.05176273]
[1745062817926,4.8605788,138.58,138.54,0.05176273]
[1745062818128,7.2164,138.59,138.54,0.05176273]
[1745062818930,4.86015933,138.58,138.54,0.05176273]
[1745062819130,7.2164,138.59,138.54,0.05176273]
[1745062819730,27.84,138.61,138.54,0.05176273]
[1745062819931,27.84,138.64,138.55,9.01132251]
[1745062820131,4.86288699,138.63,138.55,9.01132251]
[1745062820325,4.86372579,138.62,138.55,9.01132251]
[1745062820526,27.84,138.64,138.55,9.01132251]
[1745062820726,4.86389395,138.63,138.58,0.05425292]
[1745062821022,9.01132251,138.67,138.58,0.05425292]
[1745062821023,599.26,138.7,138.59,36.85132251]
[1745062821223,4.86655364,138.67,138.59,36.85132251]
[1745062821428,7.2132,138.65,138.59,27.84]
[1745062821833,7.2132,138.65,138.62,0.05139539]
[1745062823133,4.87324755,138.64,138.62,0.05139539]
[1745062823334,7.2135,138.64,138.62,0.05139539]
[1745062823734,7.2132,138.65,138.62,0.05139539]
[1745062823933,4.87420279,138.64,138.62,0.05139539]
[1745062824134,7.2132,138.65,138.62,0.05139539]
[1745062824334,4.87480563,138.64,138.62,0.05139539]
[1745062824532,9.01132251,138.67,138.62,0.05139539]
[1745062824732,4.87603499,138.66,138.62,0.05139539]
[1745062824931,4.87603499,138.65,138.62,0.05139539]
[1745062825131,4.87603499,138.64,138.62,0.05139539]
[1745062825433,4.87832487,138.63,138.62,0.05139539]
[1745062825836,7.2136,138.64,138.62,0.05139539]
[1745062826131,4.87868962,138.63,138.62,0.05139539]
[1745062827936,4.88207154,138.63,138.62,0.05139539]
[1745062833340,4.88216232,138.63,138.62,0.05139539]
[1745062833541,7.2122,138.67,138.62,0.05139539]
[1745062833734,4.88278392,138.66,138.62,0.05139539]
[1745062833939,4.88278392,138.65,138.62,0.05139539]
[1745062834136,4.88278392,138.64,138.62,0.05139539]
[1745062834339,7.2122,138.67,138.62,0.05139539]
[1745062834540,4.88228262,138.66,138.62,0.05139539]
[1745062834735,4.88228262,138.65,138.62,0.05139539]
[1745062834939,4.88228262,138.64,138.62,0.05139539]
[1745062835141,7.2122,138.67,138.62,0.05139539]
[1745062835345,4.88268716,138.66,138.62,0.05139539]
[1745062835643,4.88268716,138.65,138.62,0.05139539]
[1745062835842,4.88268716,138.64,138.62,0.05139539]
[1745062836044,4.88268716,138.63,138.62,0.05139539]
[1745062836343,7.2131,138.65,138.62,0.05139539]
[1745062836544,4.88286364,138.64,138.62,0.05139539]
[1745062836744,4.88257868,138.63,138.62,0.05139539]
[1745062836944,7.2131,138.65,138.62,0.05139539]
[1745062837138,4.88261139,138.64,138.62,0.05139539]
[1745062837344,9.01132251,138.69,138.62,0.05139539]
[1745062837544,4.88392991,138.67,138.62,0.05139539]
[1745062837743,4.88392991,138.66,138.62,0.05139539]
[1745062837943,4.88392991,138.65,138.62,0.05139539]
[1745062838141,4.88392991,138.64,138.62,0.05139539]
[1745062838345,7.2124,138.66,138.62,0.05139539]
[1745062838545,4.88476224,138.65,138.62,0.05139539]
[1745062838741,4.88476224,138.64,138.62,0.05139539]
[1745062838942,7.2124,138.66,138.62,0.05139539]
[1745062839142,4.88531978,138.65,138.62,0.05139539]
[1745062839344,7.2124,138.66,138.62,0.05139539]
[1745062839542,4.88689642,138.65,138.62,0.05139539]
[1745062839742,7.212,138.67,138.62,0.05139539]
[1745062839943,4.88679118,138.66,138.62,0.05139539]
[1745062840145,4.88679118,138.65,138.62,0.05139539]
[1745062840447,3.1122,138.68,138.63,27.88]
[1745062840648,0.05185439,138.65,138.63,27.88]
[1745062843050,608.11132251,138.73,138.63,36.89132251]
[1745062843353,12.10049577,138.71,138.63,36.89132251]
[1745062843545,4.89039577,138.7,138.63,36.89132251]
[1745062843746,4.89039577,138.69,138.63,36.89132251]
[1745062843946,7.2104,138.7,138.63,36.89132251]
[1745062844146,4.89112255,138.69,138.63,36.89132251]
[1745062844346,36.89132251,138.73,138.65,0.05364017]
[1745062844546,7.2101,138.71,138.65,0.05364017]
[1745062844746,4.8902741,138.7,138.65,0.05364017]
[1745062844951,4.8902741,138.69,138.65,0.05364017]
[1745062845153,27.88,138.73,138.65,0.05364017]
[1745062845453,4.88936584,138.72,138.65,0.05364017]
[1745062845752,4.88936584,138.71,138.65,0.05364017]
[1745062846055,4.88936584,138.7,138.65,0.05364017]
[1745062846253,4.88936584,138.69,138.65,0.05364017]
[1745062846449,27.88,138.73,138.65,0.05364017]
[1745062846648,0.05376881,138.68,138.65,0.05364017]
[1745062850858,0.05376881,138.68,138.65,9.06496268]
[1745062855755,7.877,138.74,138.65,9.06496268]
[1745062856055,4.88244441,138.73,138.65,9.06496268]
[1745062856257,4.88244441,138.72,138.66,3.9593]
[1745062856555,4.88244441,138.71,138.67,27.88]
[1745062856756,3.8949,138.74,138.67,27.88]
[1745062856954,4.88334904,138.73,138.68,0.04907189]
[1745062857152,4.88334904,138.72,138.68,0.04907189]
[1745062857457,3.8232,138.78,138.69,9.01132251]
[1745062857660,7.2083,138.74,138.68,0.04907189]
[1745062857958,4.88646951,138.73,138.67,40.83742251]
[1745062858159,7.2083,138.74,138.7,0.04990131]
[1745062858357,4.88742841,138.73,138.7,0.04990131]
[1745062858554,7.2083,138.74,138.7,0.04990131]
[1745062858754,4.88746229,138.73,138.7,0.04990131]
[1745062858956,4.88669492,138.72,138.7,0.04990131]
[1745062859256,4.88998652,138.71,138.7,0.04990131]
[1745062861756,4.88998652,138.71,138.64,27.4]
[1745062862055,4.88998652,138.7,138.64,27.4]
[1745062862251,12.10108652,138.69,138.64,27.4]
[1745062862555,4.88998652,138.68,138.64,27.4]
[1745062862758,4.88998652,138.67,138.64,27.4]
[1745062862958,4.89319923,138.66,138.65,0.05500764]
[1745062865760,0.045812,138.67,138.65,0.05500764]
[1745062866059,4.90065041,138.66,138.65,0.05500764]
[1745062866761,0.045812,138.67,138.65,0.05500764]
[1745062867060,4.90060021,138.66,138.65,7.26790764]
[1745062867259,0.045812,138.67,138.65,0.05500764]
[1745062867763,4.90072146,138.66,138.65,7.26790764]
[1745062870663,4.90072146,138.66,138.65,0.05500764]
[1745062872069,4.90072146,138.66,138.65,7.26790764]
[1745062878778,0.045812,138.67,138.66,7.2124]
[1745062878979,4.95564031,138.67,138.66,7.2124]
[1745062880782,4.95778566,138.67,138.66,7.2124]
[1745062882184,4.95778566,138.67,138.65,0.05500764]
[1745062882379,4.91197366,138.66,138.65,0.05500764]
[1745062883586,10.67955951,138.66,138.61,33.18758585]
[1745062883883,4.91197366,138.65,138.61,33.18758585]
[1745062884085,4.91197366,138.64,138.61,33.18758585]
[1745062884281,4.91197366,138.63,138.61,33.18758585]
[1745062884478,4.91197366,138.62,138.61,33.18758585]
[1745062884885,5.76758585,138.7,138.64,5.76758585]
[1745062885277,7.2112,138.69,138.64,5.76758585]
[1745062885585,0.04964597,138.68,138.66,0.05417155]
[1745062886388,7.26104597,138.68,138.66,0.05417155]
[1745062886889,0.04964597,138.68,138.66,0.05417155]
[1745062894694,7.26104597,138.68,138.66,0.05417155]
[1745062894896,0.04964597,138.68,138.66,0.05417155]
[1745062895792,7.26104597,138.68,138.66,0.05417155]
[1745062896596,7.2119,138.67,138.66,0.05417155]
[1745062896797,0.04964597,138.68,138.66,0.05417155]
[1745062896996,4.79640759,138.67,138.66,0.05417155]
[1745062897399,4.79640759,138.67,138.61,5.76758585]
[1745062897699,10.56399344,138.66,138.61,5.76758585]
[1745062897998,4.79640759,138.65,138.61,5.76758585]
[1745062898300,4.79640759,138.64,138.61,5.76758585]
[1745062898499,4.79640759,138.63,138.61,5.76758585]
[1745062898699,4.79640759,138.62,138.61,12.98258585]
[1745062900403,0.05218884,138.64,138.63,7.214]
[1745062900702,0.05218884,138.64,138.63,12.98158585]
[1745062901798,5.76758585,138.7,138.63,32.68758585]
[1745062901998,3.7825,138.73,138.69,5.76758585]
[1745062902200,7.2092,138.73,138.69,5.76758585]
[1745062902398,7.2092,138.73,138.7,7.21]
[1745062903101,7.2092,138.73,138.7,7.26154244]
[1745062904203,43.72818585,138.74,138.71,7.2097]
[1745062905506,32.68758585,138.74,138.72,7.2092]
[1745062905804,5.76758585,138.74,138.72,7.2092]
[1745062906807,5.76758585,138.74,138.73,7.2088]
[1745062907008,16.66338585,138.76,138.73,7.2088]
[1745062907810,16.66338585,138.76,138.73,7.25591925]
[1745062909610,7.2077,138.75,138.73,0.04711925]
[1745062909811,9.45588585,138.76,138.73,0.04711925]
[1745062910212,16.66338585,138.76,138.73,7.25551925]
[1745062910613,9.45588585,138.76,138.73,0.04711925]
[1745062910813,9.45588585,138.76,138.74,7.2082]
[1745062911314,16.66338585,138.76,138.73,7.25581925]
[1745062912315,4.6746528,138.75,138.73,7.25581925]
[1745062912613,4.6746528,138.74,138.73,7.25581925]
[1745062916718,4.6746528,138.74,138.73,0.04711925]
[1745062916918,10.44223865,138.74,138.68,5.76758585]
[1745062917219,4.6746528,138.73,138.68,5.76758585]
[1745062917419,4.6746528,138.72,138.68,5.76758585]
[1745062917716,4.6746528,138.71,138.68,5.76758585]
[1745062917923,4.6746528,138.7,138.69,7.2109]
[1745062918523,16.66338585,138.76,138.68,5.76758585]
[1745062918823,4.66919271,138.75,138.7,5.76758585]
[1745062919021,4.66919271,138.74,138.7,5.76758585]
[1745062919220,4.66919271,138.73,138.7,5.76758585]
[1745062919421,4.66919271,138.72,138.7,5.76758585]
[1745062919621,39.89438585,138.77,138.74,7.2082]
[1745062919921,4.67083477,138.76,138.74,7.2082]
[1745062920117,4.67083477,138.75,138.74,7.2082]
[1745062920316,4.67083477,138.75,138.73,7.2085]
[1745062920515,4.67530765,138.74,138.73,7.2085]
[1745062923526,7.2073,138.76,138.73,7.2085]
[1745062923826,4.6688622,138.75,138.73,7.2085]
[1745062924026,4.6688622,138.74,138.73,7.2085]
[1745062924630,4.6688622,138.74,138.71,26.92]
[1745062924818,4.6688622,138.73,138.71,26.92]
[1745062925125,4.6688622,138.72,138.71,26.92]
[1745062929528,7.2085,138.74,138.71,26.92]
[1745062930729,7.2085,138.74,138.7,5.76758585]
[1745062930730,12.97648585,138.73,138.68,32.38758585]
[1745062931228,5.76758585,138.73,138.68,32.38758585]
[1745062931422,5.76758585,138.73,138.64,25.7699]
[1745062931423,5.76758585,138.69,138.64,30.2214]
[1745062931628,5.76758585,138.67,138.64,26.62]
[1745062932129,7.2116,138.68,138.64,32.38758585]
[1745062932628,5.76758585,138.69,138.64,32.38758585]
[1745062933128,5.76758585,138.71,138.66,5.76758585]
[1745062933825,7.2104,138.7,138.66,5.76758585]
[1745062934423,12.97758585,138.71,138.66,5.76758585]
[1745062935729,7.2104,138.7,138.64,32.38758585]
[1745062936529,5.76758585,138.69,138.64,32.38758585]
[1745062936729,5.76758585,138.69,138.64,26.62]
[1745062937130,12.97888585,138.69,138.64,26.62]
[1745062937430,5.76758585,138.69,138.64,26.62]
[1745062937631,5.76758585,138.65,138.61,26.62]
[1745062940031,5.76758585,138.65,138.6,17.35908585]
[1745062940430,7.2125,138.66,138.6,17.35908585]
[1745062940933,7.213,138.65,138.6,17.35908585]
[1745062941131,5.76758585,138.67,138.6,17.35908585]
[1745062941631,7.2126,138.66,138.6,17.35908585]
[1745062942927,0.0484259,138.64,138.6,17.35908585]
[1745062943235,0.0484259,138.64,138.62,0.05076634]
[1745062945638,7.2620259,138.64,138.62,0.05076634]
[1745062946035,0.0484259,138.64,138.62,0.05076634]
[1745062946936,7.2621259,138.64,138.62,0.05076634]
[1745062948138,0.0484259,138.64,138.62,0.05076634]
[1745062948739,7.2621259,138.64,138.62,0.05076634]
[1745062948938,0.0484259,138.64,138.62,0.05076634]
[1745062949439,7.2621259,138.64,138.62,0.05076634]
[1745062949741,0.0484259,138.64,138.62,0.05076634]
[1745062950040,7.214,138.63,138.62,0.05076634]
[1745062950339,0.0484259,138.64,138.62,0.05076634]
[1745062950540,7.2621259,138.64,138.62,0.05076634]
[1745062951244,0.0484259,138.64,138.62,0.05076634]
[1745062953439,7.2620259,138.64,138.62,0.05076634]
[1745062953741,5.76758585,138.63,138.56,7.6906]
[1745062954039,7.2156,138.6,138.56,7.6906]
[1745062955242,7.26565954,138.59,138.56,7.6906]
[1745062955942,7.2166,138.58,138.54,26.42]
[1745062956535,5.81714539,138.59,138.54,26.42]
[1745062956841,5.76758585,138.57,138.53,3.5839]
[1745062957342,12.98498585,138.57,138.53,3.5839]
[1745062958443,5.76758585,138.55,138.54,0.05139972]
[1745062959139,10.43871065,138.55,138.54,0.05139972]
[1745062959643,0.04869109,138.56,138.54,0.05139972]
[1745062960640,0.04869109,138.56,138.54,3.94949972]
[1745062961743,0.04869109,138.56,138.54,0.05139972]
[1745062968048,7.2152,138.61,138.55,32.20758585]
[1745062968243,7.2147,138.62,138.59,7.216]
[1745062969248,0.05222431,138.62,138.59,0.04690283]
[1745062969453,0.05222431,138.62,138.59,5.81448868]
[1745062969651,0.05222431,138.62,138.61,5.76758585]
[1745062969851,0.05222431,138.62,138.61,12.98258585]
[1745062970444,0.05222431,138.62,138.61,7.215]
[1745062970851,0.05222431,138.62,138.59,0.04690283]
[1745062971249,0.05222431,138.62,138.59,5.81448868]
[1745062971454,0.05222431,138.62,138.59,0.04690283]
[1745062972459,4.64028121,138.61,138.59,0.04690283]
[1745062972658,4.63953997,138.6,138.59,0.04690283]
[1745062979861,0.05222431,138.62,138.59,35.50938259]
[1745062980064,26.44,138.66,138.6,3.666]
[1745062980256,30.2752,138.69,138.6,3.666]
[1745062980459,12.87677976,138.68,138.6,3.666]
[1745062980655,7.2142,138.63,138.59,26.44]
[1745062980857,26.44,138.65,138.6,7.2153]
[1745062981062,9.02247976,138.64,138.56,30.356]
[1745062981260,9.02247976,138.64,138.61,0.05133046]
[1745062981563,7.2147,138.62,138.61,0.05133046]
[1745062982863,16.23717976,138.62,138.61,0.05133046]
[1745062983063,7.2152,138.61,138.56,26.44]
[1745062983463,26.44,138.61,138.55,3.9111]
[1745062983865,26.44,138.61,138.57,7.2168]
[1745062984163,7.2158,138.6,138.57,7.2168]
[1745062984364,7.26494808,138.6,138.57,7.2168]
[1745062984759,7.26494808,138.6,138.57,7.26293665]
[1745062985661,9.02247976,138.58,138.46,585.7647]
[1745062985868,9.02247976,138.56,138.48,3.8132]
[1745062986266,7.2184,138.55,138.48,3.8132]
[1745062986468,9.02247976,138.56,138.48,3.8132]
[1745062986766,7.2189,138.54,138.48,3.8132]
[1745062986968,9.02247976,138.56,138.48,3.8132]
[1745062987167,0.05162569,138.53,138.48,3.8132]
[1745062990669,7.27112569,138.53,138.48,3.8132]
[1745062991772,4.53248752,138.52,138.48,3.8132]
[1745062992072,7.27112569,138.53,138.48,3.8132]
[1745062992373,4.53246936,138.52,138.48,3.8132]
[1745062992673,26.53162569,138.53,138.48,3.8132]
[1745062993069,0.05162569,138.53,138.49,9.02247976]
[1745062993963,0.05162569,138.53,138.52,7.2197]
[1745062994164,26.48,138.56,138.49,9.02247976]
[1745062994468,7.217,138.58,138.5,0.0498209]
[1745062994663,4.53277328,138.57,138.5,0.0498209]
[1745062994869,4.53277328,138.56,138.5,0.0498209]
[1745062995173,33.6963,138.59,138.51,9.02247976]
[1745062995374,4.532862,138.58,138.52,34.0717]
[1745062995573,0.05537357,138.54,138.52,34.0717]
[1745062995771,33.6961,138.59,138.52,34.0717]
[1745062995973,4.53321102,138.58,138.54,0.04794993]
[1745062996172,4.53321102,138.57,138.54,0.04794993]
[1745062996373,33.6961,138.59,138.54,0.04794993]
[1745062996575,4.53428273,138.58,138.54,0.04794993]
[1745062996871,4.53428273,138.57,138.54,0.04794993]
[1745062997074,33.6961,138.59,138.54,0.04794993]
[1745062997277,4.5342056,138.58,138.54,0.04794993]
[1745062997474,26.48,138.59,138.54,0.04794993]
[1745062997676,4.53517677,138.58,138.54,0.04794993]
[1745062997973,7.2154,138.61,138.54,0.04794993]
[1745062998269,4.53520955,138.6,138.54,0.04794993]
[1745062998473,4.53520955,138.59,138.54,0.04794993]
[1745062998673,4.53520955,138.58,138.54,0.04794993]
[1745062998975,4.53520955,138.57,138.54,0.04794993]
[1745062999271,7.2163,138.59,138.54,0.04794993]
[1745062999479,4.53511746,138.58,138.54,0.04794993]
[1745062999772,4.53511746,138.57,138.54,0.04794993]
[1745062999974,39.07517976,138.62,138.54,0.04794993]
[1745063000173,7.2158,138.6,138.54,0.04794993]
[1745063000366,4.53547583,138.59,138.54,0.04794993]
[1745063000570,4.53547583,138.58,138.54,0.04794993]
[1745063000871,7.2153,138.61,138.54,0.04794993]
[1745063001072,4.53624658,138.6,138.54,3.70674993]
[1745063001271,4.53624658,138.59,138.54,3.70674993]
[1745063001472,4.53624658,138.58,138.54,3.70674993]
[1745063001768,39.07517976,138.62,138.54,3.70674993]
[1745063001968,4.53658387,138.61,138.54,3.70674993]
[1745063002168,4.53658387,138.6,138.54,3.70674993]
[1745063002369,11.75278387,138.59,138.54,3.70674993]
[1745063002570,4.58465162,138.58,138.54,3.70674993]
[1745063002775,4.53658387,138.57,138.54,3.70674993]
[1745063002976,0.04806775,138.58,138.54,3.70674993]
[1745063003277,4.5365606,138.57,138.54,3.70674993]
[1745063003477,0.04806775,138.58,138.54,0.04794993]
[1745063003771,4.53617358,138.57,138.54,0.04794993]
[1745063003976,7.26466775,138.58,138.54,0.04794993]
[1745063004176,4.53494486,138.57,138.54,0.04794993]
[1745063004377,0.04806775,138.58,138.54,0.04794993]
[1745063004569,4.53482501,138.57,138.54,0.04794993]
[1745063004774,0.04806775,138.58,138.54,0.04794993]
[1745063004970,4.53455915,138.57,138.54,0.04794993]
[1745063005175,0.04806775,138.58,138.54,0.04794993]
[1745063005381,4.53460274,138.57,138.54,0.04794993]
[1745063005579,0.04806775,138.58,138.54,0.04794993]
[1745063005879,4.53600233,138.57,138.54,0.04794993]
[1745063006180,0.04806775,138.58,138.54,0.04794993]
[1745063006480,4.53584844,138.57,138.54,0.04794993]
[1745063006780,0.04806775,138.58,138.54,0.04794993]
[1745063006980,4.53617883,138.57,138.54,0.04794993]
[1745063007279,0.04806775,138.58,138.54,0.04794993]
[1745063007480,4.5359164,138.57,138.54,0.04794993]
[1745063007681,0.04806775,138.58,138.54,0.04794993]
[1745063007880,4.53621734,138.57,138.54,0.04794993]
[1745063008182,0.04806775,138.58,138.54,0.04794993]
[1745063008380,4.53592492,138.57,138.54,0.04794993]
[1745063008675,0.04806775,138.58,138.54,0.04794993]
[1745063008874,4.53629248,138.57,138.54,0.04794993]
[1745063009073,4.53575942,138.56,138.54,0.04794993]
[1745063009273,26.52806775,138.58,138.54,0.04794993]
[1745063009477,4.53543527,138.57,138.54,0.04794993]
[1745063009677,4.53543527,138.56,138.54,0.04794993]
[1745063009881,33.74486775,138.58,138.54,0.04794993]
[1745063010182,4.53558193,138.57,138.54,0.04794993]
[1745063010382,0.04806775,138.58,138.54,0.04794993]
[1745063010586,5.21812832,138.57,138.54,0.04794993]
[1745063010786,5.21812832,138.56,138.54,0.04794993]
[1745063010988,5.21812832,138.55,138.54,0.04794993]
[1745063011287,0.04806775,138.58,138.54,0.04794993]